Cogmind - Beta 15 @@@ ROGUE MODE // 2025.06.12 @ 12:44:24 Player: Storm Mk9 Result: Destroyed by Y-54 Guardian with Gatling Laser Performance ------------- Evolutions (0) 0 Regions Visited (4) 800 Robots Destroyed (15) 75 Value Destroyed (355) 355 Prototype IDs (0) 0 Alien Tech Used (0) 0 Bonus (14) 14 TOTAL SCORE: 1244 Bonus ------- Follower Combat Kills 14 Cogmind --------- Core Integrity 0/250 Matter 121/300 Energy 100/100 System Corruption 0% Temperature Cool (18) Movement Core (200) Ox3 Location -7/Recycling Parts ------- > --- POWER (1) -------- (None) > --- PROPULSION (2) --- (None) > --- UTILITY (2) ------ Heat Sink Small Storage Unit > --- WEAPON (2) ------- Maul Maul > --- INVENTORY (8) ---- Ion Engine Terrain Scanner Assault Rifle Grenade Launcher Peak State ------------ > --- POWER ------------ Light Nuclear Core > --- PROPULSION ------- Aluminum Leg Aluminum Leg > --- UTILITY ---------- Small Storage Unit Light Armor Plating > --- WEAPON ----------- Maul Maul > --- INVENTORY -------- Ion Engine Aluminum Leg Heat Sink Terrain Scanner Assault Rifle Grenade Launcher [Rating: 11] Favorites ----------- Power Ion Engine Engine Ion Engine Power Core Light Nuclear Core Propulsion Aluminum Leg Leg Aluminum Leg Utility Small Storage Unit Device Terrain Scanner Storage Small Storage Unit Protection Light Armor Plating Weapon Assault Rifle Ballistic Gun Assault Rifle Launcher Grenade Launcher Impact Weapon Maul Build | -11 -10 -10 -10 -7 ------- Run | Yrd Mat Min Sub Rec Slots Evolved . | . . . . . Power . | . . . . . Propulsion . | . . . . . Utility . | . . . . . Weapon . | . . . . . Parts Attached 18 | 6 4 . 4 4 Power 3 | 1 1 . 1 . Engine 2 | 1 1 . . . Core 1 | . . . 1 . Reactor . | . . . . . Propulsion 5 | 2 1 . 1 1 Treads . | . . . . . Leg 5 | 2 1 . 1 1 Wheel . | . . . . . Hover . | . . . . . Flight . | . . . . . Utility 4 | 1 2 . . 1 Device 2 | . 1 . . 1 Storage 1 | 1 . . . . Processor . | . . . . . Hackware . | . . . . . Protection 1 | . 1 . . . Artifact . | . . . . . Weapon 6 | 2 . . 2 2 Energy Gun . | . . . . . Energy Cannon . | . . . . . Ballistic Gun 3 | 2 . . 1 . Ballistic Cannon . | . . . . . Launcher 1 | . . . 1 . Special Weapon . | . . . . . Impact Weapon 2 | . . . . 2 Slashing Weapon . | . . . . . Piercing Weapon . | . . . . . Special Melee Weapon . | . . . . . Unidentified Prototypes . | . . . . . Parts Lost 9 | . . . 4 5 Power 2 | . . . 1 1 Propulsion 4 | . . . 1 3 Utility 1 | . . . . 1 Weapon 2 | . . . 2 . Highest Loss Streak 5 | . . . 4 5 To Critical Strikes . | . . . . . Average Backups 6 | 2 6 8 7 5 Power 1 | . 1 2 1 1 Propulsion . | . . 1 . . Utility 1 | . 1 1 1 2 Weapon 3 | 1 2 4 3 2 Tool/Special . | . . . . . Unused Backups 5 | . 4 . . 1 Power 1 | . . . . 1 Propulsion 1 | . 1 . . . Utility 1 | . 1 . . . Weapon 2 | . 2 . . . Tool/Special . | . . . . . Average Slot Usage (%) 99 | . 98 100 98 89 Engine 12 | . 14 14 10 . Leg 27 | . 28 28 27 24 Device 11 | . 7 14 14 3 Storage 14 | . 14 14 14 14 Protection 2 | . 5 . . 7 Ballistic Gun 26 | . 28 28 21 3 Launcher 1 | . . . 5 3 Peak Build Rating 11 | 6 8 8 9 11 Average Rating 7 | 3 7 8 8 9 On Entrance 6 | . 6 8 8 9 Naked Turns . | . . . . . Heaviest Build 16 | 11 14 14 16 16 Greatest Support 20 | 20 20 20 20 20 Greatest Overweight (x) . | . . . . . Average Overweight (x) . | . . . . . Largest Inventory Capacity 8 | 8 8 8 8 8 Average Capacity 7 | 6 8 8 8 8 Most Carried 8 | 5 8 8 8 6 Average Carried 6 | 2 6 8 6 5 Final Capacity 8 | 8 8 8 8 8 Final Carried 8 | 2 8 8 6 4 Class Distribution -------------------- 100% | Mutant Dominant Class ---------------- Mutant | -10/Materials Mutant | -10/Mines Mutant | -10/Subcaves Mutant | -7/Recycling Resources | -11 -10 -10 -10 -7 ----------- Run | Yrd Mat Min Sub Rec Matter Collected 455 | 177 141 90 47 . Remotely . | . . . . . Salvage Created 385 | . 142 127 32 84 Parts 24 | . 6 10 4 4 Haulers Intercepted 1 | . 1 . . . Recyclers Shooed . | . . . . . Parts Field Recycled . | . . . . . Retrieved Matter . | . . . . . Parts Self-Destructed 8 | . . . 8 . Prevented . | . . . . . Kills | -11 -10 -10 -10 -7 ------- Run | Yrd Mat Min Sub Rec Combat Hostiles Destroyed 11 | . 2 4 3 2 Melee 2 | . . . . 2 Guns 6 | . 2 4 . . AOE 3 | . . . 3 . Classes Destroyed 5 | . 2 1 1 1 Hauler 1 | . 1 . . . Turret 2 | . . . 2 . Swarmer 6 | . . 2 3 1 Grunt 5 | . 2 2 1 . Sentry 1 | . . . . 1 Best Kill Streak 3 | . 1 2 3 2 Combat Bots Only 3 | . 1 2 3 2 Max Kills in Single Turn 2 | . 1 1 2 1 Gunslinging . | . . . . . Exploded 2 | . . . 2 . Melee 1 | . . . . 1 Uniques/NPCs Destroyed . | . . . . . Combat | -11 -10 -10 -10 -7 -------- Run | Yrd Mat Min Sub Rec Hostile Shots Fired 143 | . 15 29 22 77 Missed 41 | . 2 3 11 25 Hits 102 | . 13 26 11 52 Projectile 102 | . 13 26 11 52 Critical Strikes 2 | . . 1 . 1 Damage Taken 1117 | . 173 315 159 470 Core 259 | . 12 76 20 151 Absorbed by Shields . | . . . . . Core Remaining (%) 100 | 100 . . . . Volleys Fired 42 | . 12 15 15 . Largest 2 | . 2 2 2 . Hottest 50 | . 40 40 50 . Shots Fired 75 | . 24 30 21 . Gun 63 | . 24 30 9 . Cannon . | . . . . . Launcher 12 | . . . 12 . Special . | . . . . . Kinetic 63 | . 24 30 9 . Thermal . | . . . . . Explosive 12 | . . . 12 . Electromagnetic . | . . . . . Robot Hit Streak 8 | . 8 6 2 . Robot Miss Streak 8 | . 2 4 8 . Penetration Max . | . . . . . Secondary Targets 1 | . . 1 . . Max Gunslinging Chain 1 | . . 1 . . Shots Hit Robots 41 | . 18 17 3 3 Core Hits 30 | . 7 7 14 2 Critical Kills 2 | . . . . 2 Critical Parts Destroyed 1 | . 1 . . . Critical Strikes 3 | . 1 . . 2 Destroy 1 | . 1 . . . Smash 2 | . . . . 2 Melee Attacks 5 | . . . . 5 Impact 5 | . . . . 5 Slashing . | . . . . . Piercing . | . . . . . Sneak Attacks . | . . . . . Combat Hostiles . | . . . . . Follow-up Attacks . | . . . . . Damage Inflicted 899 | . 196 180 422 101 Guns 399 | . 196 180 23 . Cannons . | . . . . . Explosions 399 | . . . 399 . Melee 101 | . . . . 101 Ramming . | . . . . . Kinetic 399 | . 196 180 23 . Thermal . | . . . . . Explosive 399 | . . . 399 . Electromagnetic . | . . . . . Impact 101 | . . . . 101 Slashing . | . . . . . Piercing . | . . . . . Highest Corruption . | . . . . . Average Corruption . | . . . . . Corruption Purged . | . . . . . Corruption Blocked . | . . . . . Overload Shots . | . . . . . Overflow Damage 22 | . . . 22 . Projectiles . | . . . . . Explosions 22 | . . . 22 . Melee . | . . . . . Knockbacks . | . . . . . Impact . | . . . . . Kinetic . | . . . . . Secondary . | . . . . . Self-Inflicted Damage 76 | . . . 76 . Shots 2 | . . . 2 . Rammed . | . . . . . Targets Rammed . | . . . . . Kicked . | . . . . . Crushed . | . . . . . Highest Temperature 54 | . 30 54 . 6 Average Temperature 16 | . 9 24 . 3 Received Heat Transfer 423 | . 99 171 42 111 Siege Activations . | . . . . . Martial Activations . | . . . . . Shielding Activations . | . . . . . Robots Disrupted . | . . . . . Combat Hostiles . | . . . . . Robots Corrupted . | . . . . . Combat Hostiles . | . . . . . Parts Fried . | . . . . . Impact Corruptions . | . . . . . Robots Melted . | . . . . . Combat Hostiles . | . . . . . Parts Melted . | . . . . . Heat Transferred . | . . . . . Parts Sabotaged . | . . . . . Parts Stolen . | . . . . . Parts Stripped . | . . . . . Power Chain Reactions . | . . . . . Alert | -11 -10 -10 -10 -7 ------- Run | Yrd Mat Min Sub Rec Maximum Alert Level . | . . . . . Low Security (%) 100 | 100 100 100 . 100 Level 1 . | . . . . . Level 2 . | . . . . . Level 3 . | . . . . . Level 4 . | . . . . . Level 5 . | . . . . . High Security . | . . . . . Max Security . | . . . . . Peak Influence 108 | . 55 58 . 108 Initial 103 | . . . . 103 Average 10 | . 8 9 . 98 Influence Increases 599 | . 72 135 337 55 Destroy 0b10 Robot/C 300 | . 40 100 120 40 Destroy 0b10 Robot/NC 5 | . 5 . . . Destroy Leader 32 | . 12 20 . . Allied During Kill 17 | . . 10 7 . Successful Hack 5 | . . 5 . . Lose Combat Pursuer 240 | . 15 . 210 15 Influence Decreases 501 | . 72 135 120 174 Entered New Map 114 | . . . . 114 Time Decay 257 | . 72 115 60 10 Lost Part 90 | . . . 40 50 Lost Ally 40 | . . 20 20 . Squads Dispatched . | . . . . . Investigation . | . . . . . Extermination . | . . . . . Reinforcement . | . . . . . Assault . | . . . . . Garrison . | . . . . . Intercept . | . . . . . Searches Triggered . | . . . . . Construction Impeded . | . . . . . Haulers Reinforced . | . . . . . Active Scanning Responses . | . . . . . Cargo Convoy Interrupts . | . . . . . Stealth | -11 -10 -10 -10 -7 --------- Run | Yrd Mat Min Sub Rec Distress Signals 1 | . 1 . . . Communications Jammed . | . . . . . Distress Signals . | . . . . . Times Spotted 32 | . 5 7 11 9 Peak Tracking Total 9 | . 3 3 5 9 Tactical Retreats 4 | . 1 . 2 1 Traps | -11 -10 -10 -10 -7 ------- Run | Yrd Mat Min Sub Rec Traps Triggered . | . . . . . Indirectly . | . . . . . Trap Hack Attempts . | . . . . . Triggered . | . . . . . Disarmed . | . . . . . Reprogrammed . | . . . . . Reused . | . . . . . Traps Extracted . | . . . . . Installed . | . . . . . Triggered . | . . . . . Machines | -11 -10 -10 -10 -7 ---------- Run | Yrd Mat Min Sub Rec Machines Disabled 4 | . . . 4 . Max in Single Turn 2 | . . . 2 . Machines Repaired . | . . . . . Machines Dismantled . | . . . . . Machines Sabotaged . | . . . . . Overloaded Fab Kills . | . . . . . Hacking | -11 -10 -10 -10 -7 --------- Run | Yrd Mat Min Sub Rec Machines Accessed 3 | . 2 1 . . Terminals 3 | . 2 1 . . Fabricators . | . . . . . Repair Stations . | . . . . . Recycling Units . | . . . . . Scanalyzers . | . . . . . Garrison Access . | . . . . . Total Hacks 8 | . 5 3 . . Successful 3 | . 1 2 . . Failed 5 | . 4 1 . . Catastrophic 1 | . 1 . . . Database Lockouts . | . . . . . Manual 7 | . 5 2 . . Terminals 8 | . 5 3 . . Fabricators . | . . . . . Repair Stations . | . . . . . Recycling Units . | . . . . . Scanalyzers . | . . . . . Garrison Access . | . . . . . Terminal Hacks 1 | . . 1 . . Zone Layout 1 | . . 1 . . Fabricator Hacks . | . . . . . Repair Station Hacks . | . . . . . Recycling Unit Hacks . | . . . . . Scanalyzer . | . . . . . Garrison Access Hacks . | . . . . . Unauthorized Hacks 2 | . 1 1 . . Terminals 2 | . 1 1 . . Track 2 | . 1 1 . . Fabricators . | . . . . . Repair Stations . | . . . . . Recycling Units . | . . . . . Scanalyzers . | . . . . . Garrison Access . | . . . . . Data Cores Recovered . | . . . . . Used . | . . . . . Hacking Detections 2 | . 2 . . . Full Trace Events . | . . . . . Feedback Events . | . . . . . Feedback Blocked . | . . . . . Robot Schematics Acquired . | . . . . . Robots Built . | . . . . . Authchips . | . . . . . Time . | . . . . . Total Robot Build Rating . | . . . . . Part Schematics Acquired . | . . . . . Parts Built . | . . . . . Authchips . | . . . . . Time . | . . . . . Total Part Build Rating . | . . . . . Parts Repaired . | . . . . . Time . | . . . . . Parts Recycled . | . . . . . Recycled Matter . | . . . . . Retrieved Matter . | . . . . . Retrieved Components . | . . . . . Parts Scanalyzed . | . . . . . Part Schematics Acquired . | . . . . . Parts Damaged . | . . . . . Bothacking | -11 -10 -10 -10 -7 ------------ Run | Yrd Mat Min Sub Rec Used RIF Installer . | . . . . . Robots Hacked . | . . . . . Non-combat . | . . . . . Combat . | . . . . . Robot Hacks Applied . | . . . . . Relay Couplers Released . | . . . . . Fabnet Peak Effective % . | . . . . . Robots Rewired . | . . . . . Allies Hacked . | . . . . . Hacks Repelled . | . . . . . Allies | -11 -10 -10 -10 -7 -------- Run | Yrd Mat Min Sub Rec Total Allies 3 | . . 3 . . Largest Group 3 | . . 3 2 . Highest-Rated Group 40 | . . 40 24 . Highest-Rated Ally 16 | . . 16 16 . Total Orders . | . . . . . Ally Attacks 26 | . . 10 16 . Total Damage 240 | . . 78 162 . Kills 2 | . . 1 1 . Allies Corrupted . | . . . . . Allies Melted . | . . . . . Intel | -11 -10 -10 -10 -7 ------- Run | Yrd Mat Min Sub Rec Active Infowar (turns) 1174 | . 294 637 243 . Terrain 1174 | . 294 637 243 . Robot Analysis Total . | . . . . . Derelict Logs Recovered 2 | . . 2 . . Drone Launches . | . . . . . Drone Recoveries . | . . . . . Exploration | -11 -10 -10 -10 -7 ------------- Run | Yrd Mat Min Sub Rec Turns Passed 1502 | 85 509 637 243 28 Spaces Moved 966 | 46 319 482 114 5 Core 11 | 11 . . . . Treads . | . . . . . Legs 955 | 35 319 482 114 5 Wheels . | . . . . . Hover . | . . . . . Flight . | . . . . . Fastest Speed 50 | 50 120 120 120 120 Average Speed 119 | 103 120 120 120 120 Slowest Speed 120 | 120 120 120 120 120 Overloaded Moves . | . . . . . Propulsion Burnouts . | . . . . . Robots Hopped . | . . . . . Potential Cave-ins . | . . . . . Cave-ins Triggered . | . . . . . Exploration Rate (%) 34 | 5 52 97 11 6 Regions Visited 4 Branch Regions 3 Pre-discovered Areas 1 | . . 1 . . Known Exits Taken . | . . . . . Unknown Exits Taken 4 | 1 1 1 1 . Scrap Searched 1 | . . 1 . . Spaces Dug . | . . . . . Terrain Destroyed 27 | . . . 27 . Melee . | . . . . . Projectile . | . . . . . AOE 27 | . . . 27 . Terrain Rammed . | . . . . . Walls Destroyed . | . . . . . Machines Disabled . | . . . . . Actions | -11 -10 -10 -10 -7 --------- Run | Yrd Mat Min Sub Rec Total 1237 | 83 426 513 198 17 Wait 179 | 24 75 17 60 3 Move 962 | 45 318 481 113 5 Hop . | . . . . . Pick Up 21 | 8 11 . 2 . Fast Attach 1 | . 1 . . . Attach 13 | 6 1 . 4 2 Detach . | . . . . . Swap 9 | . 2 . 4 3 Drop 6 | . 6 . . . Fire 42 | . 12 15 15 . Melee 4 | . . . . 4 Ram . | . . . . . Kick . | . . . . . Crush . | . . . . . Escape Stasis . | . . . . . Rewire . | . . . . . Trap . | . . . . . Miscellaneous . | . . . . . Route ------- -11/Scrapyard -10/Materials (discovered 2 exits: [*Mat] / *Min) -10/Mines (discovered 3 exits: [*Mat x2] / [*Sub]) -10/Subcaves (discovered 2 exits: [*Rec] / [*Scr]) -7/Recycling History --------- Turn | Location | Event 10 | -11/Scrapyard | Discovered new exit (range 16) 86 | -11/Scrapyard | Entered Materials 322 | -10/Materials | Build established: Mutant 356 | -10/Materials | Discovered new exit (range 15) 579 | -10/Materials | Discovered new exit (range 9) 595 | -10/Materials | Entered Mines 633 | -10/Mines | Met a Derelict bent on vengeance 644 | -10/Mines | Discovered new exit (range 9) 700 | -10/Mines | Joined a pair of Derelicts in attacking an 0b10 outpost 756 | -10/Mines | Assisted by bots powering up and referring to "LRC-V3" 965 | -10/Mines | Discovered new exit (range 15) 1021 | -10/Mines | Learned location of Zion (-7) 1030 | -10/Mines | Learned 2 Materials zone layouts 1218 | -10/Mines | Discovered new exit (range 6) 1232 | -10/Mines | Entered Subcaves 1232 | -10/Subcaves | Accompanied by 2 allies 1233 | -10/Subcaves | Approached by a straggling Scientist 1396 | -10/Subcaves | Discovered new exit (range 11) 1431 | -10/Subcaves | Scientist uncovered a shortcut to Scraptown 1440 | -10/Subcaves | Lost 4 parts (1p1n2w) 1475 | -10/Subcaves | Entered Recycling 1482 | -7/Recycling | Core integrity fell below 50% 1500 | -7/Recycling | Core integrity fell below 20% 1503 | -7/Recycling | Destroyed by Y-54 Guardian with Gatling Laser Last Messages --------------- 01461_ Acquired Heat Sink. LOCATION=UNKNOWN GOAL=ESCAPE 01477_ Y-54 Guardian springs to life. 01480_ Lgt. Armor Plating destroyed. 01483_ Chain reaction triggered in Lgt. Nuclear Core. 01483_ P-60 Hacker destroyed. 01493_ Aluminum Leg destroyed. 01496_ R-06 Scavenger collects Shock Rifle. 01497_ S-27 Virus suffers critical hit (Smash). 01497_ S-27 Virus destroyed. 01499_ Aluminum Leg destroyed. 01499_ Lgt. Nuclear Core destroyed. 01500_ R-06 Scavenger collects Mic. Nuclear Core. 01500_ Aluminum Leg destroyed. 01500_ Y-54 Guardian suffers critical hit (Smash). 01500_ Y-54 Guardian destroyed. Map ----- +----------------------------------------------------+ | ??????????????????????????????????????? | | ??????????????????????????????????????? | | ??????????????????????????????????????? | | ??????????????????????????????????????? | | ??????????????????????????????????????? | | ??????????????????????????????????????? | | ??????????????????????????????????????? | | ??????????????????????????????????????? | | ??????????????????????????????????????? | | ??????????????????????????????????????? | | ??????????????????? ??????????????????? | | ??????????????????? Y?????????????????? | | ??????????????????? "?????????????????? | | ?????????????????? ##????????????????? | | ?????????????????? ?????????????????? | | ?????????????????? #?????????????????? | | ????????????????? #?????????????????? | | ????????????????? ##????????????????? | | ????????????????? T#????????????????? | | ???????????###### i#?#???????????????? | | ?????????### ##"" # ###+###?????????? | | ?????????# r ????????? | | ?????????# ????????? | | ?????????# %Y ????????? | | ?????????######g##+#####??????????????? | | ?????????# @%=Y #????????????????? | | ?????????# r#???????????????? | | ?????????# ##???????????????? | | ?????????# r#???????????????? | | ?????????# ##???????????????? | | ?????????# #????????????????? | | ?????????# #????????????????? | | ?????????#############????????????????? | | ??????????????????????????????????????? | | ??????????????????????????????????????? | | | | | | | | | | | | | | | | | | | | | | | | | | | | | | | +----------------------------------------------------+ Best States ------------- Heat Dissipation 35 Energy Generation 14 Energy Capacity 250 Matter Stores 300 Matter Capacity 300 Sight Range 16 Terrain Scan Range 14 Terrain Scan Density 10 Armor Coverage 150 Evasion (%) 55 Item Schematics ----------------- None Robot Schematics ------------------ None Fabricated ------------ Nothing Repaired ---------- Nothing Alien Tech Used ----------------- None Achievements -------------- None Challenges ------------ None Game ------ Seed ElectrostormSeismicMace Manual? 0 Play Time 00:12:28 Cumulative 33.8 hours Start 2025.06.12 @ 12:32:28 End 2025.06.12 @ 12:44:24 Sessions 1 Manual Loads 0 Difficulty Rogue Special Mode None Game No. 23 Rogue 4 Adventurer 0 Explorer 19 Win Type - Total 0 Types 0/0/0/0/0/0/0/0/0/0 Lore% 34 Gallery% 27 Achievement% 67 Wizard Run 0 Options --------- Layout 1 ASCII 0 Keyboard 0 Movement Mouse Keybinds 0 Fullscreen 1 Font 16/SmallcapsGlow Map View 50x40 Zoom Use 0% Tactical HUD 1 Map Filters NONE Filters NONE Steam SD RUN: f8f7a1f2-61e7-4396-a66a-5cc1f16b1db1